bitfinex/quotes_ETHUSD_20250625
["timestamp","ask_amount","ask_price","bid_price","bid_amount"]
[1750856610922,7.007,2427.1,2426.8,4.12049208]
[1750856611095,7.007,2427.1,2426.9,4.12033734]
[1750856611268,0.8684,2427.7,2427.0,5.05088056]
[1750856611602,7.2126,2427.6,2427.3,4.11979937]
[1750856612108,7.2126,2427.6,2427.2,0.2056]
[1750856612283,11.3319936,2427.6,2427.2,0.2056]
[1750856612471,7.2126,2427.6,2427.2,4.32553717]
[1750856613306,7.2126,2427.6,2427.2,4.3254888]
[1750856613512,7.2126,2427.6,2427.3,4.11979118]
[1750856613998,7.2106,2427.6,2427.3,4.11979118]
[1750856614393,7.2106,2427.6,2427.2,4.32549109]
[1750856614801,7.2106,2427.6,2427.3,4.11974374]
[1750856614978,7.2106,2427.6,2427.2,4.32548766]
[1750856615170,7.2106,2427.6,2427.2,0.2056]
[1750856615371,7.2106,2427.6,2427.3,4.11972618]
[1750856615905,7.2106,2427.6,2427.4,4.1196299]
[1750856616072,7.2106,2427.6,2427.3,4.1197238]
[1750856618497,0.2056,2427.6,2427.3,4.1197238]
[1750856618696,0.2056,2427.6,2427.5,4.11946446]
[1750856618900,11.91,2427.9,2427.4,4.32513727]
[1750856618901,7.15739114,2427.9,2427.4,4.32513727]
[1750856619067,7.002,2427.7,2427.4,4.32513727]
[1750856619580,7.002,2427.8,2427.5,4.11944559]
[1750856620779,3.0386,2427.9,2427.5,4.11944559]
[1750856620980,7.001,2427.8,2427.5,4.11944559]
[1750856621604,3.0386,2427.9,2427.5,4.11944559]
[1750856621802,7.001,2427.7,2427.4,4.32511279]
[1750856622193,7.001,2427.7,2427.5,4.11945972]
[1750856622701,7.001,2427.7,2427.4,4.32515862]
[1750856623587,7.001,2427.7,2427.4,0.2056]
[1750856623980,7.001,2427.7,2427.4,4.32521442]
[1750856625301,7.001,2427.7,2427.4,0.2056]
[1750856625302,0.8632,2427.6,2427.4,0.2056]
[1750856625490,0.8632,2427.4,2427.2,0.2056]
[1750856625668,6.998,2427.3,2427.2,0.2056]
[1750856625873,11.11780389,2427.3,2426.7,4.1207396]
[1750856626079,0.8632,2427.1,2426.8,0.2056]
[1750856626371,2.37496724,2427.1,2426.4,6.03129611]
[1750856626700,0.2056,2427.0,2426.6,4.12097928]
[1750856626898,6.998,2426.9,2426.5,4.32673029]
[1750856627244,6.998,2426.9,2426.4,0.2056]
[1750856627245,4.32625277,2426.8,2426.4,0.2056]
[1750856627503,5.04502282,2426.7,2426.4,0.2056]
[1750856627897,0.9242,2426.7,2426.4,0.2056]
[1750856628077,0.9242,2426.7,2426.4,4.32690771]
[1750856628276,0.9242,2426.7,2426.4,0.2056]
[1750856628700,0.9242,2426.7,2426.4,4.32685967]
[1750856628908,0.9242,2426.7,2426.5,4.12114251]
[1750856629501,0.9242,2426.7,2426.4,4.32684587]
[1750856629744,6.997,2426.7,2426.3,0.8777]
[1750856629922,6.997,2426.7,2426.6,4.12099233]
[1750856630415,1.1085,2427.0,2426.7,4.12081382]
[1750856630585,6.996,2426.9,2426.7,4.12081382]
[1750856630790,6.996,2426.9,2426.7,4.32641382]
[1750856632229,0.9029,2427.0,2426.7,4.32641382]
[1750856632426,6.996,2426.9,2426.8,4.12065271]
[1750856632719,6.996,2426.9,2426.7,4.3263426]
[1750856633023,0.8701,2426.8,2426.7,0.2056]
[1750856633196,14.99075271,2426.8,2426.7,0.2056]
[1750856633397,4.12111461,2426.6,2426.1,4.12184163]
[1750856633603,6.995,2426.5,2426.3,0.2056]
[1750856638230,6.995,2426.5,2426.3,4.32710084]
[1750856638839,6.995,2426.5,2426.4,4.12133201]
[1750856639015,0.2056,2426.7,2426.5,4.12107607]
[1750856639016,6.993,2426.7,2426.5,4.12107607]
[1750856639348,0.9331,2427.0,2426.4,1.0983]
[1750856639506,1.911,2427.2,2426.4,1.0983]
[1750856639507,6.993,2426.9,2426.7,4.12071493]
[1750856639933,6.993,2426.9,2426.8,4.12065271]
[1750856640318,6.993,2426.9,2426.7,4.12077393]
[1750856641141,6.993,2426.9,2426.6,4.32651364]
[1750856643613,0.9303,2426.8,2426.6,0.2056]
[1750856643943,6.25531537,2426.8,2426.0,10.9131]
[1750856644139,5.05095389,2426.8,2426.4,0.2056]
[1750856644642,4.12083948,2426.7,2426.4,0.2056]
[1750856644811,6.991,2426.6,2426.3,0.2056]
[1750856645913,6.991,2426.6,2426.3,4.32701837]
[1750856646107,6.991,2426.6,2426.4,4.12130418]
[1750856646313,6.991,2426.6,2426.3,0.2056]
[1750856647242,0.2056,2426.7,2426.3,4.32708416]
[1750856647442,6.99,2426.6,2426.3,4.32708416]
[1750856650945,8.4047629,2426.6,2426.3,0.2056]
[1750856651522,8.4047629,2426.6,2426.3,4.32710135]
[1750856651823,6.99,2426.6,2426.4,4.12120584]
[1750856652846,0.9303,2426.8,2426.5,4.12116216]
[1750856653046,0.2056,2427.1,2426.7,4.12071897]
[1750856653247,6.988,2427.0,2426.8,4.12057406]
[1750856654121,6.988,2427.0,2426.7,4.32634533]
[1750856655129,6.987,2427.0,2426.7,4.32634533]
[1750856655334,6.987,2427.0,2426.7,0.2056]
[1750856655954,8.61522719,2427.0,2426.7,0.2056]
[1750856656122,0.887,2426.9,2426.5,4.12113613]
[1750856656326,5.21311346,2426.9,2426.4,4.32677002]
[1750856657557,1.0926,2426.9,2426.4,0.2056]
[1750856657858,1.90056,2426.9,2426.5,4.12108703]
[1750856661131,6.984,2426.8,2426.5,4.12108703]
[1750856661351,6.984,2426.8,2426.6,4.1209143]
[1750856663337,6.984,2426.8,2426.5,0.8771]
[1750856663738,6.984,2426.8,2426.6,4.1209857]
[1750856664134,6.984,2426.8,2426.7,4.12082251]
[1750856664461,6.984,2426.8,2426.7,4.32642251]
[1750856664780,4.11985067,2427.3,2426.9,4.12048292]
[1750856664781,0.8603,2427.3,2426.9,4.12048292]
[1750856664968,0.8603,2427.3,2426.7,0.2056]
[1750856664969,6.982,2427.2,2426.8,4.12056667]
[1750856665170,6.982,2427.2,2426.9,0.2056]
[1750856667251,4.98016825,2427.3,2426.9,0.2056]
[1750856667556,6.982,2427.2,2426.9,0.2056]
[1750856667757,6.982,2427.2,2426.9,4.32605396]
[1750856668163,6.98,2427.2,2427.1,4.12014338]
[1750856668946,6.98,2427.3,2427.2,4.11990085]
[1750856669153,6.98,2427.3,2427.2,4.1199126]
[1750856670436,6.98,2427.3,2427.1,4.32567748]
[1750856670637,6.98,2427.3,2427.1,0.2056]
[1750856670966,6.979,2427.3,2427.1,0.2056]
[1750856671154,6.979,2427.3,2426.5,0.9374]
[1750856671155,5.00437363,2427.2,2426.5,0.9374]
[1750856671463,0.8844,2427.2,2426.8,4.12063323]
[1750856673168,0.8844,2427.2,2426.7,4.12079753]
[1750856673333,5.00446915,2427.2,2426.7,4.12079753]
[1750856676145,4.12014461,2427.1,2426.7,4.12079753]
[1750856676557,5.00443576,2427.2,2426.7,4.12079753]
[1750856677876,0.8535,2427.0,2426.6,4.12091239]
[1750856678070,6.976,2426.9,2426.6,4.12091239]
[1750856678374,6.976,2426.9,2426.5,4.12107194]
[1750856678569,11.09656304,2426.9,2426.4,4.1212843]
[1750856678945,4.1206921,2426.8,2426.3,4.12150187]
[1750856679144,4.1206921,2426.8,2426.4,4.12131553]
[1750856679981,11.09657968,2426.9,2426.4,4.12131553]
[1750856681153,6.976,2426.9,2426.5,4.3267453]
[1750856681361,7.1816,2426.9,2426.5,4.3267453]
[1750856682060,7.1816,2426.9,2426.6,4.12083786]
[1750856683750,7.1816,2426.9,2426.5,4.32666612]
[1750856683953,6.973,2426.8,2426.6,4.12094302]
[1750856684153,6.973,2426.8,2426.7,0.2056]
[1750856688084,6.973,2426.8,2426.4,4.1212435]
[1750856688279,6.973,2426.8,2426.5,0.2056]
[1750856690059,11.09366822,2426.8,2426.5,0.2056]
[1750856690791,6.973,2426.8,2426.5,0.2056]
[1750856691860,6.973,2426.8,2426.6,4.1209794]
[1750856692061,6.973,2426.8,2426.5,4.32666558]
[1750856693893,15.17950922,2427.0,2426.5,4.32666366]
[1750856694191,6.969,2426.9,2426.5,4.32666366]
[1750856695094,11.0895005,2426.9,2426.5,0.2056]
[1750856695392,13.90568528,2426.9,2426.5,4.32675531]
[1750856695590,6.969,2426.9,2426.5,4.32675531]
[1750856695967,6.969,2426.8,2426.5,4.32675531]
[1750856697894,6.969,2426.8,2426.5,0.2056]
[1750856698065,6.967,2426.8,2426.7,0.2056]
[1750856699568,6.967,2426.8,2426.4,5.04794655]
[1750856699767,7.8169,2426.8,2426.5,0.2056]
[1750856700385,11.93760262,2426.8,2426.5,0.2056]
[1750856700589,4.12092484,2426.7,2426.1,4.12169429]
[1750856700883,4.97123201,2426.4,2426.2,0.2056]
[1750856701194,6.965,2426.3,2426.2,0.2056]
[1750856701700,4.1217737,2426.2,2425.9,0.2056]
[1750856701921,11.29219743,2426.3,2425.9,0.2056]
[1750856702080,7.1706,2426.3,2425.9,0.2056]
[1750856702414,4.12185439,2426.1,2425.6,5.04935811]
[1750856702565,4.12221276,2425.9,2425.7,0.2056]
[1750856702904,11.9359971,2426.0,2425.7,0.2056]
[1750856703090,7.8139,2426.0,2425.7,0.2056]
[1750856703662,7.8139,2426.0,2425.7,4.32811812]
[1750856703867,6.964,2425.9,2425.4,1.23147178]
[1750856704074,4.12150432,2426.3,2425.7,4.12249099]
[1750856704280,6.964,2426.2,2425.7,4.12243196]
[1750856704469,6.964,2426.2,2425.6,4.12268462]
[1750856704685,6.964,2426.2,2425.9,4.12210482]
[1750856705297,6.964,2426.1,2426.0,4.12190889]
[1750856705499,1.885,2426.4,2426.1,4.12179339]
[1750856705668,0.69012917,2426.4,2426.1,4.12179339]
[1750856706004,6.963,2426.3,2426.1,4.12179339]
[1750856706367,6.964,2426.2,2426.0,4.12198102]
[1750856706577,6.964,2426.2,2426.1,4.12169281]
[1750856706772,6.964,2426.2,2426.0,4.12192554]
[1750856707578,6.964,2426.2,2425.9,4.12210492]
[1750856707781,6.964,2426.2,2425.8,5.04666988]
[1750856708181,6.964,2426.2,2425.9,4.12215956]
[1750856708399,6.964,2426.2,2425.9,4.12218145]
[1750856708982,6.964,2426.2,2426.0,4.12200484]
[1750856709303,6.964,2426.2,2425.8,5.04665812]
[1750856709675,6.964,2426.2,2425.7,4.12249331]
[1750856709676,11.08571438,2426.2,2425.6,0.8724]
[1750856709999,0.8768,2426.1,2425.7,4.12244206]
[1750856711186,0.8768,2426.1,2425.8,4.12234843]
[1750856711386,0.8768,2426.1,2425.9,4.12213053]
[1750856711786,0.8768,2426.1,2425.8,4.12226367]
[1750856712403,4.99877615,2426.1,2425.6,4.99501561]
[1750856712707,0.8768,2426.1,2425.7,4.12250654]
[1750856713208,2.59606727,2426.1,2425.4,0.8658]
[1750856713411,0.8768,2426.1,2425.7,4.12236398]
[1750856713984,1.0824,2426.1,2425.8,4.12231232]
[1750856715086,1.0824,2426.1,2425.7,4.12244187]
[1750856715904,5.20425876,2426.1,2425.7,4.12244187]
[1750856716122,1.32768106,2426.0,2425.7,4.12244187]
[1750856716311,6.96,2425.9,2425.7,4.12244187]
[1750856716537,6.96,2425.9,2425.8,4.12235138]
[1750856717011,1.0824,2426.1,2425.8,4.12235138]
[1750856717498,6.959,2426.0,2425.7,4.12243069]
[1750856718315,6.959,2426.0,2425.8,4.12233702]
[1750856718815,1.0824,2426.1,2425.9,4.12202328]
[1750856719003,7.1636,2426.3,2426.2,4.1215144]
[1750856719205,7.1636,2426.3,2425.5,16.78435579]
[1750856719206,6.958,2426.3,2426.1,4.32742052]
[1750856719921,6.958,2426.3,2425.6,0.8647]
[1750856720133,0.9147,2426.2,2425.6,4.9872687]
[1750856720315,0.9147,2426.2,2425.7,4.12252133]
[1750856720518,1.8415484,2426.2,2425.6,4.98730669]
[1750856720704,4.12191551,2426.1,2425.6,4.12260669]
[1750856720905,4.12213178,2426.0,2425.5,4.12271127]
[1750856721140,6.957,2425.9,2425.6,4.12268819]
[1750856724014,0.9113,2425.8,2425.4,4.12294198]
[1750856724602,5.0337388,2425.8,2425.3,4.12317949]
[1750856725006,0.9113,2425.8,2425.1,4.12354129]
[1750856725239,0.9113,2425.8,2425.4,4.12290335]
[1750856725406,2.8218504,2425.8,2425.4,4.12290335]
[1750856725807,2.8218504,2425.8,2425.0,0.8537]
[1750856726042,10.8684,2425.7,2424.3,0.20345373]
[1750856726223,0.8684,2425.1,2424.1,5.06423934]
[1750856726419,6.954,2425.0,2424.7,4.12412295]
[1750856726810,0.8684,2425.1,2424.8,4.12402151]
[1750856727037,6.954,2425.0,2424.8,4.12402151]
[1750856727442,0.9082,2425.4,2424.5,0.939]
[1750856727833,11.07728358,2425.3,2424.8,4.12392958]
[1750856728138,1.19854836,2425.2,2424.8,4.12392958]
[1750856728440,1.19854836,2425.2,2424.9,4.12386235]
[1750856728652,6.954,2425.3,2425.0,4.12370936]
[1750856728813,6.954,2425.3,2424.8,4.12397773]
[1750856729318,4.12339347,2425.2,2424.7,4.12413746]
[1750856729523,0.8848,2425.1,2424.7,4.12413746]
[1750856729925,0.8848,2425.1,2424.8,0.2056]
[1750856730448,1.0904,2425.1,2424.7,4.12413746]
[1750856730745,1.0904,2425.1,2424.8,4.12404681]
[1750856732347,1.0904,2425.1,2424.7,4.12411646]
[1750856732952,2.42702179,2425.1,2424.7,4.12411646]
[1750856733545,2.42702179,2425.1,2424.8,4.12402544]
[1750856735346,2.42702179,2425.1,2424.6,0.2056]
[1750856735561,2.753,2425.0,2424.2,4.12507218]
[1750856735762,2.753,2425.0,2424.4,0.2056]
[1750856735763,0.2056,2424.8,2424.4,0.2056]
[1750856735929,0.877,2425.0,2424.7,4.12422155]
[1750856736137,6.952,2424.9,2424.7,4.12422155]
[1750856736336,6.952,2424.9,2424.8,4.12405146]
[1750856737050,0.2056,2425.0,2424.9,4.12388139]
[1750856737341,6.951,2425.1,2424.9,4.32948139]
[1750856737932,11.0919,2425.3,2424.9,0.2056]
[1750856738135,8.4724945,2425.2,2424.9,4.32938492]
[1750856738453,6.951,2425.2,2425.0,4.12363872]
[1750856738656,6.951,2425.2,2424.9,4.32935506]
[1750856739148,6.951,2425.2,2424.9,0.2056]
[1750856739927,6.951,2425.2,2425.0,4.12371034]
[1750856742263,0.9064,2425.5,2425.2,4.1232319]
[1750856742428,1.876,2425.6,2425.4,4.12301139]
[1750856742633,6.949,2425.5,2425.4,4.12301139]
[1750856742832,6.949,2425.5,2425.3,0.2056]
[1750856742833,6.949,2425.5,2425.3,4.32871989]
[1750856743234,6.949,2425.5,2425.4,4.12303125]
[1750856743432,0.2056,2425.8,2425.3,1.1091]
[1750856743767,6.948,2425.7,2425.5,4.12275123]
[1750856744065,10.2056,2425.8,2425.5,4.12275123]
[1750856744362,6.948,2425.7,2425.6,0.2056]
[1750856749966,6.948,2425.7,2425.6,4.32829129]
[1750856750349,6.944,2425.7,2425.6,4.32829129]
[1750856752844,6.944,2425.7,2425.6,0.2056]
[1750856753050,6.944,2425.7,2425.6,4.32829129]
[1750856754961,6.944,2425.7,2425.6,0.2056]
[1750856757580,6.944,2425.7,2425.6,4.32829129]
[1750856757764,2.0816,2426.0,2425.7,4.12252062]
[1750856757964,6.94,2425.9,2425.7,4.12252062]
[1750856758359,6.94,2425.9,2425.6,4.32819495]
[1750856758559,6.94,2425.9,2425.7,4.12250769]
[1750856758759,0.9133,2426.5,2425.7,0.8964]
[1750856758982,10.0,2426.3,2426.0,0.2056]
[1750856759152,1.1189,2426.5,2426.2,4.12167156]
[1750856759349,6.939,2426.3,2426.2,4.12167156]
[1750856759549,6.939,2426.3,2426.1,5.01815551]
[1750856759750,6.939,2426.3,2426.2,0.2056]
[1750856759949,6.938,2426.3,2426.2,0.2056]
[1750856760351,12.25674932,2426.3,2425.8,4.12226961]
[1750856760583,12.25674932,2426.3,2426.0,0.2056]
[1750856761579,8.13524745,2426.3,2426.0,0.2056]
[1750856762284,1.24622527,2426.2,2426.0,0.2056]
[1750856769089,1.24622527,2426.2,2426.0,4.3276047]
[1750856769288,6.938,2426.3,2426.1,4.12176103]
[1750856769895,6.938,2426.3,2426.2,4.12167175]
[1750856770395,6.938,2426.3,2426.0,5.26882553]
[1750856771190,6.938,2426.3,2426.1,4.12183006]
[1750856772170,6.938,2426.3,2426.0,5.26881762]
[1750856772968,6.938,2426.3,2426.0,4.32751762]
[1750856774967,6.938,2426.3,2426.0,0.2056]
[1750856775167,6.938,2426.3,2426.0,4.3276036]
[1750856776004,6.938,2426.3,2426.0,0.2056]
[1750856776387,8.15582859,2426.3,2426.0,0.2056]
[1750856776582,8.15582859,2426.3,2426.0,4.3276022]
[1750856777604,8.15582859,2426.3,2426.0,0.2056]
[1750856778201,8.15582859,2426.3,2426.0,4.32760884]
[1750856778798,8.15582859,2426.3,2426.1,4.12183291]
[1750856778969,6.938,2426.3,2426.0,4.32751802]
[1750856779392,6.938,2426.3,2426.0,0.2056]
[1750856779595,6.938,2426.3,2426.0,4.32759667]
[1750856779975,6.938,2426.3,2426.1,4.12182807]
[1750856780383,6.938,2426.3,2426.0,4.32751862]
[1750856780586,6.938,2426.3,2426.1,4.12183681]
[1750856781117,0.2056,2426.4,2426.2,4.12167175]
[1750856781274,0.2056,2426.8,2426.5,4.12115488]
[1750856781479,0.7787,2426.9,2426.4,4.12124297]
[1750856781480,6.925,2426.7,2426.4,4.12124297]
[1750856781679,6.925,2426.7,2426.5,4.32675928]
[1750856782210,0.8201,2426.6,2426.2,4.1215576]
[1750856782417,0.8201,2426.6,2426.2,4.3271576]
[1750856782418,1.18660035,2426.5,2426.2,4.3271576]
[1750856782721,6.924,2426.4,2426.2,0.2056]
[1750856783011,1.0145,2426.3,2426.0,4.12200876]
[1750856783910,1.0145,2426.3,2425.9,0.2056]
[1750856784118,1.20598622,2426.2,2425.9,0.2056]
[1750856784279,7.928,2426.1,2425.7,0.2056]
[1750856784474,12.04985613,2426.1,2425.7,0.2056]
[1750856784708,4.12208207,2426.0,2425.6,0.2056]
[1750856785013,4.12235974,2425.8,2425.6,0.2056]
[1750856785320,6.923,2425.7,2425.4,0.2056]
[1750856785613,0.8157,2425.6,2425.4,4.12301258]
[1750856786514,0.8157,2425.6,2425.3,4.32874437]
[1750856787014,0.8157,2425.6,2425.4,4.12303125]
[1750856787314,1.61013,2425.6,2425.3,4.32868314]
[1750856787820,6.923,2425.5,2425.3,4.32868314]
[1750856788290,6.923,2425.5,2425.4,4.12303125]
[1750856788681,1.61013,2425.6,2425.4,4.12303125]
[1750856788880,6.921,2425.5,2425.4,4.12303125]
[1750856789110,6.921,2425.5,2425.3,4.32877163]
[1750856789111,0.2056,2425.7,2425.3,0.2056]
[1750856789314,0.784,2425.8,2425.6,4.12269129]
[1750856789519,6.921,2425.7,2425.6,4.12269129]
[1750856792022,6.921,2425.7,2425.4,0.2056]
[1750856792184,0.7917,2425.5,2425.1,4.12340919]
[1750856792378,0.7917,2425.5,2425.2,0.2056]
[1750856792917,4.91456542,2425.5,2425.2,0.2056]
[1750856793419,0.7917,2425.5,2425.2,0.2056]
[1750856793627,4.91465105,2425.5,2425.0,4.12370869]
[1750856793922,2.66065772,2425.4,2424.9,0.2056]
[1750856794130,0.2056,2425.2,2424.9,4.12387255]
[1750856794427,0.2056,2425.2,2425.0,4.12370517]
[1750856794785,0.2056,2425.2,2424.7,0.2056]
[1750856794990,0.2056,2425.2,2425.1,4.12354129]
[1750856795196,7.1236,2425.2,2425.1,4.12354129]
[1750856795614,7.1236,2425.2,2425.0,4.12363345]
[1750856795909,7.1236,2425.2,2424.9,4.12382305]
[1750856796243,0.7925,2424.9,2424.6,4.32990427]
[1750856796530,0.7925,2424.9,2424.7,4.1241261]
[1750856796943,0.7925,2424.9,2424.6,0.2056]
[1750856797112,6.918,2424.8,2424.2,4.93233676]
[1750856797439,7.89465,2424.8,2424.4,4.33031576]
[1750856797742,0.8055,2424.7,2424.4,0.2056]
[1750856799000,0.2056,2424.6,2424.1,4.33076075]
[1750856799224,0.2056,2424.6,2424.1,0.2056]
[1750856799431,1.261215,2424.6,2424.1,4.33069409]
[1750856799608,1.261215,2424.6,2424.2,4.1250471]
[1750856800239,4.95225394,2424.5,2424.0,4.12530579]
[1750856800418,0.2056,2424.3,2423.9,4.33109424]
[1750856800619,1.41309331,2424.3,2424.0,4.1254034]
[1750856800819,1.41309331,2424.3,2423.9,0.2056]
[1750856801131,1.41309331,2424.3,2424.2,4.12507218]
[1750856802654,0.8204,2424.7,2424.4,4.12473189]
[1750856802827,6.917,2424.6,2424.5,4.12451505]
[1750856803358,6.916,2424.7,2424.6,4.12427585]
[1750856803746,6.916,2424.7,2424.5,4.12445338]
[1750856804823,6.915,2424.7,2424.5,4.12445338]
[1750856805960,6.915,2424.7,2424.4,4.33025524]
[1750856806133,8.30773999,2424.7,2424.4,0.2056]
[1750856806664,8.30773999,2424.7,2424.3,4.12482311]
[1750856806858,8.51333999,2424.7,2424.3,4.33042311]
[1750856807357,0.8259,2424.6,2424.3,4.33042311]
[1750856807571,0.8259,2424.6,2424.2,4.12506648]
[1750856807780,1.118964,2424.5,2424.2,4.12506648]
[1750856807976,1.118964,2424.5,2424.1,4.33082576]
[1750856808169,1.118964,2424.5,2424.2,4.12504471]
[1750856808984,1.118964,2424.5,2424.3,4.12482521]
[1750856809380,1.118964,2424.5,2424.4,4.12473189]
[1750856809381,0.2056,2424.5,2424.4,4.12473189]
[1750856809679,6.915,2424.5,2424.4,4.33033189]
[1750856811742,0.2056,2424.8,2424.5,4.12450913]
[1750856811938,7.1196,2424.8,2424.6,4.12430486]
[1750856813279,7.1196,2424.8,2424.5,4.12447922]
[1750856813446,6.912,2424.7,2424.5,4.12447922]
[1750856814472,6.912,2424.7,2424.6,4.12439165]
[1750856814869,0.2056,2424.8,2424.6,4.12439165]
[1750856815172,6.911,2424.7,2424.6,4.12439165]
[1750856815371,0.2056,2424.8,2424.7,4.12422155]
[1750856815569,0.7598,2425.1,2424.6,4.12439165]
[1750856815570,6.911,2425.0,2424.8,4.12391969]
[1750856815765,6.911,2425.0,2424.7,4.12413516]
[1750856815961,9.11099468,2425.0,2424.6,0.2056]
[1750856816145,13.44040097,2425.0,2424.5,4.33003579]
[1750856816872,4.12388935,2424.9,2424.5,4.33003579]
[1750856817077,4.12388935,2424.9,2424.4,4.12470276]
[1750856817273,0.8298,2424.7,2424.3,0.2056]
[1750856817471,11.03453389,2424.6,2423.8,10.8212]
[1750856817649,0.2056,2424.4,2424.0,4.33101254]
[1750856817849,0.8298,2424.3,2424.0,4.33101254]
[1750856819663,0.8298,2424.3,2424.1,4.12522882]
[1750856819970,0.8298,2424.3,2424.0,4.33097699]
[1750856820175,0.8298,2424.3,2424.1,4.12523159]
[1750856820480,0.8298,2424.3,2424.0,4.12527189]
[1750856821345,0.8298,2424.3,2424.1,4.12523746]
[1750856821869,6.909,2424.2,2424.0,4.12531915]
[1750856822066,6.909,2424.2,2423.9,0.2056]
[1750856822279,8.09537363,2424.2,2423.9,0.2056]
[1750856822780,8.09537363,2424.2,2423.8,4.33127672]
[1750856823578,12.22044862,2424.2,2423.8,4.33127672]
[1750856823768,8.09537363,2424.2,2423.8,4.33127672]
[1750856823969,8.09537363,2424.2,2423.8,0.2056]
[1750856824161,1.32558321,2424.1,2423.8,0.2056]
[1750856824365,8.766,2424.2,2423.8,4.33133993]
[1750856824875,8.766,2424.2,2423.9,4.12548711]
[1750856825092,8.766,2424.2,2423.9,4.12549203]
[1750856825297,8.766,2424.2,2423.8,0.2056]
[1750856825298,8.766,2424.2,2423.8,4.33128451]
[1750856825480,10.1586298,2424.2,2423.8,4.12572801]
[1750856825654,0.9644,2423.9,2423.7,4.12582683]
[1750856825854,0.9644,2423.9,2423.8,4.12575294]
[1750856826795,0.9598,2424.1,2424.0,4.12541254]
[1750856827713,0.2056,2424.1,2424.0,4.12541254]
[1750856827858,0.2056,2424.1,2423.9,4.12547294]
[1750856827859,6.905,2424.3,2424.2,4.12497618]
[1750856828461,6.905,2424.5,2424.4,4.12460659]
[1750856829194,0.2056,2424.6,2424.5,4.12456176]
[1750856829496,6.905,2424.7,2424.3,4.33043069]
[1750856829993,8.29202857,2424.7,2424.3,4.33042386]
[1750856830494,0.2056,2424.5,2424.3,4.12482386]
[1750856831279,0.2056,2424.5,2424.4,4.12473189]
[1750856833090,6.903,2424.6,2424.5,4.12456176]
[1750856834808,0.2056,2424.7,2424.6,4.12439165]
[1750856834979,6.902,2424.7,2424.6,4.12439165]
[1750856836014,6.902,2424.7,2424.5,4.33007919]
[1750856837316,6.902,2424.7,2424.5,0.2056]
[1750856837485,6.902,2424.7,2424.5,4.33014322]
[1750856839808,6.902,2424.7,2424.6,4.12439165]
[1750856839973,0.2056,2424.9,2424.8,4.12405146]
[1750856840172,6.899,2424.9,2424.8,4.12405146]
[1750856840706,6.899,2424.9,2424.8,5.09935146]
[1750856841209,1.848,2425.2,2425.1,4.12354129]
[1750856841403,1.848,2425.2,2424.8,0.9753]
[1750856841404,8.747,2425.2,2425.0,4.12364944]
[1750856841608,8.747,2425.2,2425.0,0.2056]
[1750856841776,0.7988,2425.1,2424.8,0.2056]
[1750856841976,5.12794364,2425.1,2424.7,0.2056]
[1750856842189,1.38749436,2425.0,2424.7,0.2056]
[1750856842787,1.0044,2425.1,2424.7,0.2056]
[1750856842992,1.0044,2425.1,2424.8,4.12404869]
[1750856843779,0.2056,2425.1,2424.9,4.1238495]
[1750856844493,6.897,2425.0,2424.9,4.1238495]
[1750856845320,0.2056,2425.1,2424.9,4.1238495]
[1750856845483,6.896,2425.1,2425.0,4.12371134]
[1750856845679,6.896,2425.3,2425.2,4.12337126]
[1750856845879,0.2056,2425.5,2425.3,4.12316103]
[1750856846084,6.896,2425.4,2425.3,4.12316103]
[1750856846583,6.895,2425.4,2425.2,4.12328035]
[1750856847286,6.895,2425.4,2425.3,4.12320125]
[1750856848282,6.895,2425.4,2425.2,4.9300782]
[1750856848487,6.895,2425.4,2425.1,0.2056]
[1750856849085,6.894,2425.3,2425.1,0.2056]
[1750856849306,6.894,2425.3,2425.2,4.12335917]
[1750856850799,10.7964,2425.8,2425.4,4.12303125]
[1750856851004,1.848,2425.6,2425.4,4.12303125]
[1750856851202,6.892,2425.5,2425.3,4.12308179]
[1750856851507,6.892,2425.5,2425.4,4.12302179]
[1750856852018,0.2056,2425.7,2425.2,0.2056]
[1750856852323,12.6444,2425.8,2425.4,4.32854205]
[1750856852324,6.892,2425.6,2425.4,4.32854205]
[1750856853027,6.892,2425.6,2425.5,4.12286126]
[1750856853590,6.891,2425.6,2425.5,4.12286126]
[1750856853790,6.891,2425.6,2425.4,4.32855628]
[1750856854914,0.7964,2425.8,2425.4,4.32855628]
[1750856855136,6.89,2425.8,2425.6,4.12260965]
[1750856855434,0.7979,2426.2,2425.8,4.12235138]
[1750856855604,17.0956,2426.1,2425.8,4.12235138]
[1750856855927,10.2056,2426.1,2425.8,4.12235138]
[1750856856132,0.8255,2426.4,2425.8,0.80325637]
[1750856856295,6.889,2426.4,2426.1,4.1217298]
[1750856856499,0.2056,2426.5,2426.0,1.0185]
[1750856856701,6.889,2426.4,2426.0,0.8129]
[1750856856899,6.889,2426.4,2426.2,4.32719343]
[1750856857428,6.889,2426.4,2426.2,0.2056]
[1750856859632,6.889,2426.4,2426.2,4.32715649]
[1750856860334,6.889,2426.4,2426.2,0.2056]
[1750856861836,6.889,2426.4,2426.2,4.32725795]
[1750856862534,6.889,2426.4,2426.2,0.2056]
[1750856862903,6.889,2426.4,2426.2,4.32722442]
[1750856863946,6.883,2426.5,2426.4,4.12122672]
[1750856864547,6.883,2426.6,2426.5,4.12116216]
[1750856864745,6.883,2426.6,2426.4,4.32683945]
[1750856864950,6.883,2426.6,2426.4,0.2056]
[1750856866031,11.00401436,2426.6,2426.4,0.2056]
[1750856867451,11.00401436,2426.6,2426.1,4.12175662]
[1750856867642,11.00401436,2426.6,2426.2,0.2056]
[1750856869353,6.883,2426.6,2426.2,4.32724354]
[1750856869721,6.03774481,2426.5,2426.0,4.12197666]
[1750856870054,1.0011,2426.2,2425.8,4.12222546]
[1750856870223,6.879,2426.1,2425.8,4.12222546]
[1750856870920,6.879,2426.1,2425.7,0.2056]
[1750856871126,6.879,2426.1,2425.7,4.32801177]